Cogmind - Beta 16 @@@ ROGUE MODE // 2025.11.16 @ 23:55:49 Player: Red Box Result: Destroyed by BY-464(R) with Subdweller Shrapnel Launcher Performance ------------- Evolutions (0) 0 Regions Visited (3) 600 Robots Destroyed (22) 110 Value Destroyed (732) 732 Prototype IDs (15) 300 Alien Tech Used (0) 0 Bonus (0) 0 TOTAL SCORE: 1742 Bonus ------- None Cogmind --------- Core Integrity 0/250 Matter 210/300 Energy 200/200 System Corruption 0% Temperature Cool (0) Movement Treading (240) Ox1 Location -10/Subcaves Parts ------- > --- POWER (1) -------- Subdweller Power Source > --- PROPULSION (2) --- Light Treads Compact Wheel > --- UTILITY (2) ------ Large Storage Unit Core Shielding > --- WEAPON (2) ------- Battle Cannon Battle Cannon > --- INVENTORY (15) --- Meta Core Wheel Wheel Subdweller Monowheel Improved Heat Sink High-capacity Storage Unit Makeshift Light Armor Plating Makeshift Light Armor Plating EM Pulse Gun EM Pulse Gun Subdweller Laser Subdweller Beam Cannon Battle Cannon Makeshift Axe Makeshift Axe Peak State ------------ > --- POWER ------------ Subdweller Power Source > --- PROPULSION ------- Light Treads Compact Wheel > --- UTILITY ---------- Large Storage Unit Makeshift Light Armor Plating > --- WEAPON ----------- Makeshift Axe Makeshift Axe > --- INVENTORY -------- Meta Core Wheel Subdweller Monowheel Improved Heat Sink High-capacity Storage Unit Makeshift Light Armor Plating EM Pulse Gun EM Pulse Gun Subdweller Beam Cannon Subdweller Machine Gun Battle Cannon Scrap Shield Fragment [Rating: 20] Favorites ----------- Power Ion Engine Engine Ion Engine Propulsion Aluminum Leg Treads Light Treads Leg Aluminum Leg Wheel Compact Wheel Utility Large Storage Unit Device Improved Heat Sink Storage Large Storage Unit Protection Makeshift Light Armor Plating Weapon EM Pulse Gun Energy Gun EM Pulse Gun Energy Cannon Beam Cannon Ballistic Gun Assault Rifle Ballistic Cannon Light Cannon Launcher Grenade Launcher Impact Weapon Hammer Slashing Weapon Makeshift Axe Build | -11 -10 -10 -10 ------- Run | Yrd Mat Min Sub Slots Evolved . | . . . . Power . | . . . . Propulsion . | . . . . Utility . | . . . . Weapon . | . . . . Parts Attached 34 | 7 10 . 17 Power 3 | 1 . . 2 Engine 3 | 1 . . 2 Core . | . . . . Reactor . | . . . . Propulsion 6 | 2 1 . 3 Treads 2 | . . . 2 Leg 3 | 2 1 . . Wheel 1 | . . . 1 Hover . | . . . . Flight . | . . . . Utility 8 | 2 3 . 3 Device 2 | 1 1 . . Storage 3 | 1 2 . . Processor . | . . . . Hackware . | . . . . Protection 3 | . . . 3 Artifact . | . . . . Weapon 17 | 2 6 . 9 Energy Gun 3 | . 2 . 1 Energy Cannon 2 | . 1 . 1 Ballistic Gun 3 | 2 . . 1 Ballistic Cannon 5 | . 1 . 4 Launcher 1 | . 1 . . Special Weapon . | . . . . Impact Weapon 1 | . 1 . . Slashing Weapon 2 | . . . 2 Piercing Weapon . | . . . . Special Melee Weapon . | . . . . Unidentified Prototypes . | . . . . Parts Lost 9 | . . . 9 Power 1 | . . . 1 Propulsion 3 | . . . 3 Utility 1 | . . . 1 Weapon 4 | . . . 4 Highest Loss Streak 6 | . . . 6 To Critical Strikes . | . . . . Average Backups 12 | 3 9 15 14 Power . | . . . . Propulsion 3 | 2 4 4 3 Utility 1 | . . 2 2 Weapon 6 | 1 4 8 7 Tool/Special . | . . . . Unused Backups 14 | . 2 . 12 Power . | . . . . Propulsion 3 | . . . 3 Utility 2 | . . . 2 Weapon 7 | . 2 . 5 Tool/Special 2 | . . . 2 Average Slot Usage (%) 99 | . 99 100 99 Engine 13 | . 14 14 13 Treads 2 | . . . 4 Leg 24 | . 28 28 18 Wheel 1 | . . . 4 Device 10 | . 13 14 5 Storage 14 | . 14 14 14 Protection 3 | . . . 8 Energy Gun 7 | . 21 . . Energy Cannon 9 | . 1 12 13 Ballistic Gun 1 | . 2 . 1 Ballistic Cannon 6 | . 1 8 8 Launcher 2 | . . 5 2 Peak Build Rating 20 | 9 10 10 20 Average Rating 10 | 5 9 10 12 On Entrance 7 | . 9 10 10 Avg Prop Armor Cover (%) 12 | . . . 12 Naked Turns . | . . . . Heaviest Build 41 | 14 32 32 41 Greatest Support 20 | 20 20 20 20 Greatest Overweight (x) 2 | . 1 1 2 Average Overweight (x) . | . . 1 1 Largest Inventory Capacity 15 | 8 15 15 15 Average Capacity 13 | 6 10 15 15 Most Carried 15 | 6 15 15 15 Average Carried 12 | 3 9 15 14 Final Capacity 15 | 8 15 15 15 Final Carried 15 | 6 15 15 15 Class Distribution -------------------- 100% | Mutant Dominant Class ---------------- Mutant | -10/Materials Mutant | -10/Mines Mutant | -10/Subcaves Resources | -11 -10 -10 -10 ----------- Run | Yrd Mat Min Sub Matter Collected 1086 | 314 138 104 530 Remotely . | . . . . Salvage Created 748 | 125 169 53 401 Parts 37 | 4 7 2 24 Haulers Intercepted 2 | . 2 . . Recyclers Shooed 1 | . 1 . . Parts Field Recycled . | . . . . Retrieved Matter . | . . . . Parts Self-Destructed 10 | . . . 10 Prevented . | . . . . Parts Restored . | . . . . Kills | -11 -10 -10 -10 ------- Run | Yrd Mat Min Sub Combat Hostiles Destroyed 18 | . 2 2 14 Melee 1 | . . . 1 Guns 1 | . . . 1 Cannons 11 | . . 2 9 AOE 5 | . 2 . 3 Classes Destroyed 6 | 2 2 . 2 Tunneler 1 | 1 . . . Hauler 2 | . 2 . . Recycler 1 | 1 . . . Grunt 6 | . 2 2 2 Sentry 1 | . . . 1 Subdweller 11 | . . . 11 Best Kill Streak 2 | 1 2 1 2 Combat Bots Only 2 | . 2 1 2 Max Kills in Single Turn 2 | 1 2 1 2 Gunslinging . | . . . . Exploded 2 | . 2 . 2 Melee 1 | . . . 1 Uniques/NPCs Destroyed . | . . . . Combat | -11 -10 -10 -10 -------- Run | Yrd Mat Min Sub Hostile Shots Fired 95 | . 7 14 74 Missed 30 | . 3 8 19 Hits 65 | . 4 6 55 Projectile 65 | . 4 6 55 AOE 8 | . . . 8 Critical Strikes 2 | . . . 2 Damage Taken 1631 | . 44 73 1514 Core 291 | . 11 . 280 Absorbed by Shields . | . . . . Redirected to Shielding 23 | . . . 23 Regen/Repaired (Parts) 113 | . 113 . . Core Remaining (%) 100 | 100 . . . Volleys Fired 106 | 11 17 11 67 Largest 2 | 2 2 2 2 Hottest 110 | 40 80 90 110 Shots Fired 190 | 22 34 22 112 Gun 71 | 22 34 . 15 Cannon 113 | . . 21 92 Launcher 6 | . . 1 5 Special . | . . . . Kinetic 114 | 22 16 10 66 Thermal 52 | . . 11 41 Explosive 6 | . . 1 5 Electromagnetic 18 | . 18 . . Robot Hit Streak 10 | 5 6 3 10 Robot Miss Streak 7 | 7 6 4 2 Penetration Max . | . . . . Secondary Targets . | . . . . Shots Hit Robots 111 | 11 17 8 75 Core Hits 34 | 3 7 4 20 Critical Kills . | . . . . Critical Parts Destroyed . | . . . . Critical Strikes 2 | . . . 2 Blast 2 | . . . 2 Melee Attacks 40 | . 1 13 26 Impact 15 | . 1 13 1 Slashing 25 | . . . 25 Piercing . | . . . . Sneak Attacks . | . . . . Combat Hostiles . | . . . . Follow-up Attacks 1 | . . . 1 Damage Inflicted 2486 | 117 268 170 1931 Guns 535 | 117 193 . 225 Cannons 1300 | . . 164 1136 Explosions 357 | . 75 6 276 Melee 294 | . . . 294 Ramming . | . . . . Kinetic 1321 | 117 94 93 1017 Thermal 490 | . 75 71 344 Explosive 282 | . . 6 276 Electromagnetic 99 | . 99 . . Impact . | . . . . Slashing 294 | . . . 294 Piercing . | . . . . Highest Corruption . | . . . . Average Corruption . | . . . . Corruption Purged . | . . . . Corruption Blocked . | . . . . Overload Shots . | . . . . Overflow Damage . | . . . . Projectiles . | . . . . Explosions . | . . . . Melee . | . . . . Knockbacks 12 | . . 2 10 Impact . | . . . . Kinetic 12 | . . 2 10 Secondary . | . . . . Self-Inflicted Damage . | . . . . Shots . | . . . . Rammed . | . . . . Targets Rammed . | . . . . Kicked . | . . . . Crushed . | . . . . Highest Temperature 284 | . 54 5 284 Average Temperature 74 | . 22 2 165 Received Heat Transfer 632 | . 24 45 563 Siege Activations . | . . . . Martial Activations . | . . . . Shielding Activations . | . . . . Robots Disrupted . | . . . . Combat Hostiles . | . . . . Robots Corrupted . | . . . . Combat Hostiles . | . . . . Parts Fried 1 | . 1 . . Impact Corruptions . | . . . . Robots Melted . | . . . . Combat Hostiles . | . . . . Parts Melted 1 | . . . 1 Heat Transferred 915 | . 100 148 667 Parts Sabotaged . | . . . . Parts Stolen . | . . . . Parts Stripped . | . . . . Power Chain Reactions 1 | . 1 . . Alert | -11 -10 -10 -10 ------- Run | Yrd Mat Min Sub Maximum Alert Level . | . . . . Low Security (%) 100 | 100 100 100 . Level 1 . | . . . . Level 2 . | . . . . Level 3 . | . . . . Level 4 . | . . . . Level 5 . | . . . . High Security . | . . . . Max Security . | . . . . Peak Influence 51 | 5 51 40 . Initial 15 | . . 15 . Average 3 | 1 4 1 . Influence Increases 332 | 10 189 63 70 Destroy 0b10 Robot/C 140 | . 40 40 60 Destroy 0b10 Robot/NC 20 | 10 10 . . Destroy Leader 34 | . 14 10 10 Trap Triggered on 0b10 20 | . 20 . . Successful Hack 43 | . 43 . . Select Force Hacks 60 | . 60 . . Destroy Structure 15 | . 2 13 . Influence Decreases 332 | 10 148 104 70 Entered New Map 26 | . . 26 . Time Decay 306 | 10 148 78 70 Squads Dispatched 4 | . 4 . . Investigation 4 | . 4 . . Extermination . | . . . . Reinforcement . | . . . . Assault . | . . . . Garrison . | . . . . Intercept . | . . . . Searches Triggered . | . . . . Construction Impeded . | . . . . Haulers Reinforced . | . . . . Active Scanning Responses . | . . . . Cargo Convoy Interrupts . | . . . . Stealth | -11 -10 -10 -10 --------- Run | Yrd Mat Min Sub Distress Signals 2 | . 1 1 . Communications Jammed . | . . . . Distress Signals . | . . . . Times Spotted 19 | . 2 2 15 Peak Tracking Total 3 | . 2 2 3 Tactical Retreats . | . . . . Traps | -11 -10 -10 -10 ------- Run | Yrd Mat Min Sub Traps Triggered 1 | . 1 . . Indirectly . | . . . . Trap Hack Attempts . | . . . . Triggered . | . . . . Disarmed . | . . . . Reprogrammed 6 | . 6 . . Reused 2 | . 2 . . Traps Extracted . | . . . . Installed . | . . . . Triggered 2 | . 2 . . Machines | -11 -10 -10 -10 ---------- Run | Yrd Mat Min Sub Machines Disabled 1 | . . . 1 Max in Single Turn 1 | . . . 1 Machines Repaired . | . . . . Machines Dismantled . | . . . . Machines Sabotaged . | . . . . Overloaded Fab Kills . | . . . . Hacking | -11 -10 -10 -10 --------- Run | Yrd Mat Min Sub Machines Accessed 14 | . 10 . 4 Terminals 7 | . 7 . . Fabricators . | . . . . Repair Stations 1 | . 1 . . Recycling Units 2 | . 2 . . Scanalyzers . | . . . . Garrison Access . | . . . . Total Hacks 43 | . 35 . 8 Successful 33 | . 25 . 8 Failed 10 | . 10 . . Catastrophic . | . . . . Database Lockouts . | . . . . Manual 21 | . 21 . . Terminals 22 | . 22 . . Fabricators . | . . . . Repair Stations 4 | . 4 . . Recycling Units 9 | . 9 . . Scanalyzers . | . . . . Garrison Access . | . . . . Terminal Hacks 17 | . 9 . 8 Record 5 | . . . 5 Robot Analysis 5 | . 5 . . Prototype ID Bank 2 | . 2 . . Open Door 1 | . . . 1 Locate Traps 1 | . 1 . . Reprogram Traps 1 | . 1 . . Proto ID Catalog 1 | . . . 1 Release Object 1 | . . . 1 Fabricator Hacks . | . . . . Repair Station Hacks 4 | . 4 . . Scan Component 2 | . 2 . . Repair 2 | . 2 . . Recycling Unit Hacks 2 | . 2 . . Retrieve Components 2 | . 2 . . Scanalyzer . | . . . . Garrison Access Hacks . | . . . . Unauthorized Hacks 10 | . 10 . . Terminals 4 | . 4 . . Botnet 3 | . 3 . . Operators 1 | . 1 . . Fabricators . | . . . . Repair Stations . | . . . . Recycling Units 6 | . 6 . . Reject 1 | . 1 . . Recyclers 1 | . 1 . . Mask 2 | . 2 . . Tunnel 2 | . 2 . . Scanalyzers . | . . . . Garrison Access . | . . . . Data Cores Recovered . | . . . . Used . | . . . . Hacking Detections 9 | . 9 . . Full Trace Events 2 | . 2 . . Feedback Events . | . . . . Feedback Blocked . | . . . . Robot Schematics Acquired . | . . . . Robots Built . | . . . . Authchips . | . . . . Time . | . . . . Total Robot Build Rating . | . . . . Part Schematics Acquired . | . . . . Parts Built . | . . . . Authchips . | . . . . Time . | . . . . Total Part Build Rating . | . . . . Part Studies Acquired . | . . . . Parts Repaired 2 | . 2 . . Time 52 | . 52 . . Parts Recycled . | . . . . Recycled Matter . | . . . . Retrieved Matter . | . . . . Retrieved Components 12 | . 12 . . Parts Scanalyzed . | . . . . Part Schematics Acquired . | . . . . Parts Damaged . | . . . . Bothacking | -11 -10 -10 -10 ------------ Run | Yrd Mat Min Sub Used RIF Installer . | . . . . Robots Hacked . | . . . . Non-combat . | . . . . Combat . | . . . . Robot Hacks Applied . | . . . . Relay Couplers Released . | . . . . Fabnet Peak Effective % . | . . . . Robots Rewired . | . . . . Allies Hacked . | . . . . Hacks Repelled . | . . . . Allies | -11 -10 -10 -10 -------- Run | Yrd Mat Min Sub Total Allies . | . . . . Largest Group . | . . . . Highest-Rated Group . | . . . . Highest-Rated Ally . | . . . . Total Orders . | . . . . Ally Attacks . | . . . . Total Damage . | . . . . Kills . | . . . . Allies Corrupted . | . . . . Allies Melted . | . . . . Intel | -11 -10 -10 -10 ------- Run | Yrd Mat Min Sub Active Infowar (turns) 1333 | 32 1301 . . Terrain 1333 | 32 1301 . . Robot Analysis Total 5 | . 5 . . Derelict Logs Recovered 3 | . . 2 1 Drone Launches . | . . . . Drone Recoveries . | . . . . Exploration | -11 -10 -10 -10 ------------- Run | Yrd Mat Min Sub Turns Passed 5470 | 117 1741 1303 2309 Spaces Moved 3024 | 53 1198 588 1185 Core 8 | 8 . . . Treads 5 | . . . 5 Legs 2558 | 45 1198 588 727 Wheels 453 | . . . 453 Hover . | . . . . Flight . | . . . . Fastest Speed 50 | 50 120 190 115 Average Speed 155 | 109 130 190 165 Slowest Speed 240 | 120 190 190 240 Overloaded Moves . | . . . . Propulsion Burnouts . | . . . . Robots Hopped . | . . . . Potential Cave-ins . | . . . . Cave-ins Triggered . | . . . . Exploration Rate (%) 67 | 4 99 98 70 Regions Visited 3 Branch Regions 2 Pre-discovered Areas 3 | . 2 . 1 Known Exits Taken . | . . . . Unknown Exits Taken 3 | 1 1 1 . Scrap Searched 6 | . . 1 5 Spaces Dug 6 | . 1 2 3 Terrain Destroyed 35 | . 2 14 19 Melee 3 | . 1 2 . Projectile 5 | . . . 5 AOE 27 | . 1 12 14 Terrain Rammed . | . . . . Walls Destroyed . | . . . . Machines Disabled . | . . . . Actions | -11 -10 -10 -10 --------- Run | Yrd Mat Min Sub Total 3550 | 88 1342 727 1393 Wait 264 | 12 89 112 51 Move 3021 | 52 1197 587 1185 Hop . | . . . . Pick Up 41 | 6 15 . 20 Fast Attach 11 | 7 3 . 1 Attach 9 | . 1 . 8 Detach 1 | . 1 . . Swap 36 | . 8 4 24 Drop 22 | . 10 . 12 Fire 106 | 11 17 11 67 Melee 39 | . 1 13 25 Ram . | . . . . Kick . | . . . . Crush . | . . . . Escape Stasis . | . . . . Rewire . | . . . . Trap . | . . . . Miscellaneous . | . . . . Route ------- -11/Scrapyard -10/Materials (discovered 6 exits: [*Mat x3] / [*Min x2] / *Sub) -10/Mines (discovered 3 exits: [*Mat x2] / *Sub) -10/Subcaves (discovered 1 exit: [*Mat]) History --------- Turn | Location | Event 19 | -11/Scrapyard | Discovered new exit (range 14) 118 | -11/Scrapyard | Entered Materials 119 | -10/Materials | Met a group of wandering Federalists 257 | -10/Materials | Discovered new exit (range 15) 303 | -10/Materials | Build established: Mutant 351 | -10/Materials | Discovered new exit (range 7) 406 | -10/Materials | Discovered new exit (range 5) 632 | -10/Materials | Discovered new exit (range 12) 949 | -10/Materials | Discovered new exit (range 14) 1523 | -10/Materials | Discovered new exit (range 9) 1689 | -10/Materials | Repaired Beam Cannon 1716 | -10/Materials | Repaired Lgt. Cannon 1859 | -10/Materials | Entered Mines 2143 | -10/Mines | Discovered new exit (range 10) 2221 | -10/Mines | Discovered new exit (range 4) 2342 | -10/Mines | Learned 2 Materials zone layouts 2510 | -10/Mines | Learned Materials terminal intel 2537 | -10/Mines | Excavation squad dispatched 2537 | -10/Mines | A large section of the Mines collapsed 3150 | -10/Mines | Discovered new exit (range 6) 3162 | -10/Mines | Entered Subcaves 3421 | -10/Subcaves | Shifting Twisted Machinery released Mak. Light Armor Plating 3432 | -10/Subcaves | Shifting Twisted Machinery released Lgt. Humpback 4098 | -10/Subcaves | Visited Clippyterm 4103 | -10/Subcaves | Learned Factory fabricator intel 4103 | -10/Subcaves | Learned 40 Factory zone layouts 4296 | -10/Subcaves | Shifting Twisted Machinery released Mak. Axe 4298 | -10/Subcaves | Shifting Twisted Machinery released Battle Cannon 4415 | -10/Subcaves | Visited 4L-MR0's lab 4439 | -10/Subcaves | Found Meta Core 4622 | -10/Subcaves | Shifting Twisted Machinery released Mak. Light Armor Plating 4703 | -10/Subcaves | Ambushed by Subdweller buried in earth 4703 | -10/Subcaves | Ambushed by Subdweller buried in earth 4708 | -10/Subcaves | Ambushed by Subdweller buried in earth 4744 | -10/Subcaves | Ambushed by Subdweller buried in earth 4745 | -10/Subcaves | Core integrity fell below 50% 4796 | -10/Subcaves | Lost 6 parts (3n3w) 4822 | -10/Subcaves | Shifting Twisted Machinery released Mak. Axe 5268 | -10/Subcaves | Discovered new exit (range 10) 5346 | -10/Subcaves | A swath of the cavern ceiling suddenly collapsed 5394 | -10/Subcaves | A swath of the cavern ceiling suddenly collapsed 5449 | -10/Subcaves | Core integrity fell below 20% 5471 | -10/Subcaves | Destroyed by BY-464(R) with Subdweller Shrapnel Launcher Last Messages --------------- Ejecting SUBCON Basin... Delivery behind schedule, handle with care! 05346_ 13 Matter crushed. A swath of the cavern ceiling suddenly collapses. 05356_ Dropped Sub. Power Source. 05356_ Acquired Battle Cannon. 05375_ Acquired 10 matter. A swath of the cavern ceiling suddenly collapses. 05410_ BY-464(R) emerges from the Twisted Machinery. 05428_ FJ-XA1(R) Sub. Machine Gun blasted off. 05428_ FJ-XA1(R) destroyed. 05431_ Acquired 10 matter. 05440_ BY-464(R) knocked back. 05446_ FU-TFE(R) knocked back. 05454_ FU-TFE(R) Sub. Optics blasted off. 05457_ FU-TFE(R) knocked back. 05463_ FU-TFE(R) destroyed. 05468_ BY-464(R) affixes Scrap Shield Fragment to Scrap Shield. 05468_ BY-464(R) knocked back. Map ----- +----------------------------------------------------+ | ?????????????????????????????????????????????????? | | ?????????????????????????????????????????????????? | | ?????????????????????????????????????????????????? | | ?????????????????????????????????????????????????? | | ?????????????????????????????????????????????????? | | ?????????????????????????????????????????????????? | | ?????????????????????????????????????????????????? | | ?????????????????????????????????????????????????? | | ?????????????????????????????????????????????????? | | ?????????????????????????????????????????????????? | | ?????????????????????????????????????????????????? | | ?????????????????????????????????????????????????? | | ?????????????????????????????????????????????????? | | ?????????????????????????????????????????????????? | | ????????????????????## ??????????????????????????? | | ??????????????????"## ??????????????????????????? | | ???????????????????" ##????????????????????????? | | ???????????????#????" " ????????????????????????? | | ???????????????# ??? ""##??????????????????????? | | ???????????????# ???#%R;#??????????????????????? | | ???????????????## ??## %######?????????????????? | | ??????????????## ## * ##????????????????? | | ?????????????? "" % #????????????????? | | ????????????????????# *= ##??##???????????? | | ????????????????????###;;[% #;###"#???????????? | | ??????????????????????# ;@! ;##"""##??????????? | | ??????????????????????# ;; ##;;#"""#??????????? | | ??????????????????????# ; #""""# #??????????? | | ??????????????????????#### ##"##"# #??????????? | | ?????????????????????????## ###"#? "##??????????? | | ??????????????????????????####?#"## ##??????????? | | ???????????????????????????????#""#####??????????? | | ??????????????????????????????##"#""# #??????????? | | ??????????????????????????????###"""# #??????????? | | ???????????????????????????????# ##"# #??????????? | | ???????????????????????????????### ## #??????????? | | ???????????????????????????????## ##?##??????????? | | ???????????????????????????????# ### #??????????? | | ????????########???????????????# #??????????? | | ????????#""""""#???????????????# ##??????????? | | ????????#""""X"#?????????????### ##???????????? | | ????????# & "#???????????### ##????????????? | | ????????# "#???????????# # #?????????????? | | ????????#" """"#???????????## #?????????????? | | ????????## #####????????????# #?????????????? | | ????????#" ""#????????#???#?# #####?????????????? | | ????????#X ##?????? ### #?# ##????????????????? | | ???????### ##????# ###&% #????????????????? | | ???????# #### #???#% # ##????????????????? | | ???????# ## ###?? % ### ##????????????????? | +----------------------------------------------------+ Best States ------------- Heat Dissipation 39 Energy Generation 15 Energy Capacity 250 Matter Stores 300 Matter Capacity 300 Sight Range 16 Terrain Scan Range 16 Terrain Scan Density 10 Armor Coverage 150 Core Shielding 20 Evasion (%) 55 Recoil Reduction 2 Item Schematics ----------------- None Robot Schematics ------------------ None Fabricated ------------ Nothing Repaired ---------- Beam Cannon | 43% | -10/Materials Lgt. Cannon | 53% | -10/Materials Studied --------- None Alien Tech Used ----------------- None Achievements -------------- None Challenges ------------ None Game ------ Seed SigixSmallPlatform Manual? 0 Play Time 00:34:16 Cumulative 702.3 hours Start 2025.11.16 @ 22:48:01 End 2025.11.16 @ 23:55:49 Sessions 1 Manual Loads 0 Difficulty Rogue Special Mode None Game No. 493 Rogue 493 Adventurer 0 Explorer 0 Win Type - Total 1 Types 1/0/0/0/0/0/0/0/0/0 Lore% 68 Gallery% 67 Achievement% 45 Wizard Run 0 Options --------- Layout 1 ASCII 0 Keyboard 0 Movement Mouse Keybinds 0 Fullscreen 1 Font 20/SmallcapsGlow Map View 54x42 Zoom Use 0% Tactical HUD 1 Map Filters NONE Filters NONE Steam 1 RUN: 538ec1fe-0958-4160-bfae-fc56af318f73